bitfinex/quotes_ETHUSD_20220106
["timestamp","ask_amount","ask_price","bid_price","bid_amount"]
[1641477842725,0.735494,3399.9,3399.1,0.00557896]
[1641477843224,2.16194854,3399.8,3399.1,0.00557896]
[1641477843425,1.47102,3399.6,3399.3,1.40581614]
[1641477843626,1.47102,3399.6,3399.1,0.00557896]
[1641477844888,3.63027107,3399.6,3399.1,0.00557896]
[1641477845490,3.63027107,3399.6,3399.0,0.00614738]
[1641477846088,1.73697866,3399.3,3399.0,0.00614738]
[1641477846283,2.39174324,3399.2,3398.8,0.00728423]
[1641477846787,9.5,3399.1,3398.5,1.37751065]
[1641477846986,2.50583087,3399.0,3398.5,1.37751065]
[1641477847186,0.73573,3398.9,3398.6,0.00113685]
[1641477847386,2.19237304,3398.8,3398.6,0.00113685]
[1641477847586,4.41129425,3398.8,3398.5,1.37751065]
[1641477848185,4.41129425,3398.8,3398.0,1.37751065]
[1641477848386,0.73585,3398.5,3398.0,1.37751065]
[1641477848626,2.8917049,3398.4,3398.1,0.00284211]
[1641477849629,2.8917049,3398.4,3397.6,2.05074414]
[1641477849630,0.73587,3398.1,3397.6,2.05074414]
[1641477849829,0.73587,3398.1,3397.6,0.13704414]
[1641477849830,2.27409164,3398.0,3397.6,0.13704414]
[1641477850029,2.27409164,3398.0,3397.7,0.0022737]
[1641477850233,19.62737384,3397.9,3397.7,0.0022737]
[1641477850431,4.2,3397.7,3397.2,2.76828714]
[1641477850629,4.2,3397.7,3397.3,0.00227369]
[1641477850630,0.73604,3397.6,3397.3,0.00227369]
[1641477851231,0.48828961,3397.6,3397.4,1.20731861]
[1641477851434,1.23,3398.6,3398.0,1.17448259]
[1641477851635,1.1099328,3398.8,3398.0,1.17448259]
[1641477851636,0.73575,3398.1,3398.0,1.17448259]
[1641477852031,0.7380237,3398.1,3398.0,1.17448259]
[1641477853477,0.0022737,3398.1,3398.0,1.17448259]
[1641477853873,0.0022737,3398.1,3398.0,1.47448259]
[1641477854074,0.0022737,3398.1,3398.0,8.72448259]
[1641477854278,2.06780495,3398.8,3398.1,4.45]
[1641477854474,2.49492816,3399.2,3398.1,4.45]
[1641477854675,0.00511581,3399.0,3398.2,1.0]
[1641477854875,0.00511581,3399.0,3398.2,1.3]
[1641477855074,0.00454738,3398.9,3398.2,0.3]
[1641477855274,0.00454738,3398.9,3398.3,0.00393736]
[1641477855476,1.47139,3398.6,3398.3,0.00393736]
[1641477855874,0.00227369,3398.5,3398.3,0.00393736]
[1641477856156,0.00170527,3398.4,3398.3,0.00393736]
[1641477860176,7.9453,3400.2,3399.6,1.31549908]
[1641477860378,2.27665505,3400.1,3399.6,1.31549908]
[1641477860578,0.00795792,3399.8,3399.6,1.31549908]
[1641477860778,0.00795792,3399.8,3399.6,0.00393611]
[1641477860979,0.0073895,3399.7,3399.6,0.00393611]
[1641477865344,0.0073895,3399.7,3399.6,0.01536336]
[1641477870985,0.0073895,3399.7,3399.6,4.16536336]
[1641477871230,0.0073895,3399.7,3399.6,0.01536336]
[1641477871830,0.0073895,3399.7,3399.6,3.16536336]
[1641477872030,0.0073895,3399.7,3399.6,4.16536336]
[1641477872637,0.0073895,3399.7,3399.6,4.90071336]
[1641477872832,0.0073895,3399.7,3399.6,15.75802829]
[1641477873031,0.73514,3401.2,3400.9,1.24877805]
[1641477873233,0.73514,3401.2,3400.9,0.9018]
[1641477873535,5.45738951,3401.0,3400.9,0.9018]
[1641477873931,0.00738951,3401.0,3400.9,0.9018]
[1641477874533,0.00738951,3401.0,3400.8,1.03337457]
[1641477874878,0.00682108,3400.9,3400.5,0.73514]
[1641477875078,0.62436568,3401.2,3400.5,0.73514]
[1641477875480,0.00113685,3401.1,3400.6,0.00170527]
[1641477876278,0.73521,3400.9,3400.6,0.00170527]
[1641477876679,0.73521,3400.9,3400.4,0.00284211]
[1641477876879,0.73521,3400.9,3400.3,0.00341054]
[1641477877080,2.49471066,3401.1,3400.1,0.73982738]
[1641477877280,2.49471066,3401.1,3400.4,1.14355861]
[1641477877680,2.49471066,3401.1,3400.5,0.00227369]
[1641477877884,2.49357381,3400.8,3400.5,0.00227369]
[1641477878729,0.73526,3400.9,3400.5,0.00227369]
[1641477879729,0.73526,3400.9,3400.4,0.00284211]
[1641477879930,2.49357381,3400.8,3400.4,0.00284211]
[1641477881030,2.49357381,3400.8,3400.3,0.00341054]
[1641477882130,2.49357381,3400.8,3400.3,0.73863054]
[1641477882584,2.49357381,3400.8,3400.4,0.00284211]
[1641477883986,2.49357381,3400.8,3400.4,1.77319211]
[1641477884188,2.49357381,3400.8,3400.4,2.77319211]
[1641477884387,2.49471066,3401.1,3400.5,0.00227369]
[1641477884985,2.49471066,3401.1,3400.5,1.00227369]
[1641477885187,0.00113685,3401.1,3400.5,1.00227369]
[1641477885386,0.00113685,3401.1,3400.7,0.73517]
[1641477885788,0.00113685,3401.1,3400.7,1.03517]
[1641477885985,1.11106965,3401.1,3400.8,1.09460938]
[1641477886226,1.11106965,3401.1,3400.7,0.73517]
[1641477886627,0.00113685,3401.1,3400.7,0.73517]
[1641477887628,0.00113685,3401.1,3400.7,1.76840957]
[1641477888830,0.00113685,3401.1,3400.7,0.73517]
[1641477889988,0.00113685,3401.1,3400.7,2.12450267]
[1641477890381,0.00113685,3401.1,3400.7,2.42450267]
[1641477890581,0.00113685,3401.1,3400.7,2.12450267]
[1641477890988,0.00113685,3401.1,3400.8,0.01142287]
[1641477891781,0.00113685,3401.1,3400.8,0.01535756]
[1641477895251,0.00113685,3401.1,3400.8,0.75055756]
[1641477895451,2.10060004,3401.0,3400.8,0.75055756]
[1641477897050,2.10060004,3401.0,3400.8,0.01535756]
[1641477897683,2.10060004,3401.0,3400.8,0.01145756]
[1641477898086,2.17178743,3401.0,3400.8,0.01142287]
[1641477898687,17.36,3400.9,3400.8,0.01142287]
[1641477898899,17.784,3400.9,3400.8,0.01142287]
[1641477899085,17.85518739,3400.9,3400.8,0.01142287]
[1641477900290,0.49518739,3400.9,3400.8,0.01142287]
[1641477900491,9.474,3400.9,3400.8,0.01142287]
[1641477901333,0.424,3400.9,3400.8,0.01142287]
[1641477901537,0.73655685,3401.1,3400.8,0.01142287]
[1641477901732,0.00113685,3401.1,3400.8,0.74654287]
[1641477902132,0.00113685,3401.1,3400.8,1.04654287]
[1641477902536,2.49353255,3401.0,3400.9,14.09819362]
[1641477902734,4.1252643,3403.2,3401.0,11.4]
[1641477902934,0.73473,3402.8,3401.1,2.69819362]
[1641477903133,0.73473,3402.8,3401.8,1.33141874]
[1641477903331,0.73473,3402.8,3401.8,2.03691874]
[1641477903532,0.73473,3402.8,3401.8,2.33691874]
[1641477903933,7.6657939,3402.6,3402.2,1.46945]
[1641477904335,0.0073895,3402.4,3402.3,0.7347235]
[1641477904535,0.0073895,3402.4,3402.3,0.8808235]
[1641477905387,0.0073895,3402.4,3402.3,1.6155535]
[1641477905688,0.0073895,3402.4,3402.3,3.3502835]
[1641477906490,0.0073895,3402.4,3402.3,7.4502835]
[1641477907292,0.0073895,3402.4,3402.3,8.1742835]
[1641477907489,0.0073895,3402.4,3402.3,18.12474661]
[1641477907889,0.0073895,3402.4,3402.3,18.9742835]
[1641477908090,0.0073895,3402.4,3402.3,20.98886578]
[1641477909138,0.0073895,3402.4,3402.3,19.5797686]
[1641477909343,0.0073895,3402.4,3402.3,19.59118676]
[1641477909541,0.00067215,3402.4,3402.3,19.59118676]
[1641477909741,0.00067215,3402.4,3402.3,19.16718676]
[1641477909940,0.00067215,3402.4,3402.3,19.59118676]
[1641477910540,6.17,3402.6,3402.4,13.44634653]
[1641477910743,6.17,3402.6,3402.5,15.074]
[1641477910942,6.17,3402.6,3402.5,16.6663]
[1641477911141,0.00113685,3402.6,3402.5,16.6663]
[1641477912385,0.00113685,3402.6,3402.5,17.26785205]
[1641477913286,0.00113685,3402.6,3402.5,19.29261303]
[1641477913489,0.1,3403.0,3402.5,19.29261303]
[1641477913490,0.1,3403.0,3402.6,11.4]
[1641477913789,0.00113685,3402.8,3402.7,4.56282737]
[1641477913989,0.07250176,3403.8,3402.7,5.56282737]
[1641477914185,0.07250176,3403.8,3402.8,17.91097699]
[1641477914385,0.00511581,3403.7,3403.4,0.7342586]
[1641477914592,0.00511581,3403.7,3403.6,12.86855]
[1641477914786,0.07250176,3403.8,3403.6,13.29255]
[1641477915186,0.73431,3404.6,3403.7,12.4]
[1641477915386,0.73431,3404.6,3403.8,0.374]
[1641477915586,0.0096632,3404.5,3404.3,1.18507458]
[1641477915788,0.0096632,3404.5,3404.1,0.7343]
[1641477915988,0.00909477,3404.4,3404.1,0.7343]
[1641477916434,0.00852635,3404.3,3404.1,0.7343]
[1641477916835,0.00795793,3404.2,3404.1,0.7343]
[1641477917036,0.00795793,3404.2,3404.1,1.86810502]
[1641477917236,0.00795793,3404.2,3404.1,0.7343]
[1641477918333,0.00795793,3404.2,3404.0,1.46859]
[1641477918534,0.00886871,3404.2,3404.0,1.41859]
[1641477918733,0.0073895,3404.1,3404.0,1.41859]
[1641477918936,0.0073895,3404.1,3404.0,2.71859]
[1641477919134,0.0073895,3404.1,3404.0,1.3]
[1641477919335,0.0073895,3404.1,3403.9,3.66086601]
[1641477919535,0.0073895,3404.1,3404.0,1.0]
[1641477919740,0.00091078,3404.2,3403.6,0.424]
[1641477919983,0.00091078,3404.2,3404.0,0.00393117]
[1641477920387,3.46578057,3404.2,3404.1,0.01141228]
[1641477920785,3.4737385,3404.2,3404.1,0.01141228]
[1641477921383,9.9737385,3404.2,3404.1,0.01141228]
[1641477922387,13.0737385,3404.2,3404.1,0.01141228]
[1641477922788,9.9737385,3404.2,3404.1,0.01141228]
[1641477923733,7.97773871,3404.2,3404.1,0.01141228]
[1641477924939,9.98572223,3404.2,3404.1,0.01141228]
[1641477925340,12.78572223,3404.2,3404.1,0.01141228]
[1641477925637,9.98572223,3404.2,3404.1,0.01141228]
[1641477926638,7.97773871,3404.2,3404.1,0.01141228]
[1641477927510,9.77103504,3404.2,3404.1,0.01141228]
[1641477927712,7.97773871,3404.2,3404.1,0.01141228]
[1641477928108,1.47773871,3404.2,3404.1,0.01141228]
[1641477928312,0.00886871,3404.2,3404.1,0.01141228]
[1641477929114,0.00886871,3404.2,3404.1,1.31087053]
[1641477929413,0.00886871,3404.2,3404.1,7.07247053]
[1641477929613,0.00886871,3404.2,3404.1,8.07247053]
[1641477930214,0.00886871,3404.2,3404.1,8.37247053]
[1641477930417,0.00886871,3404.2,3404.1,10.54492035]
[1641477930816,0.6775225,3404.9,3404.2,11.4]
[1641477931015,0.6775225,3404.9,3404.5,0.73411]
[1641477931246,0.00341054,3404.8,3404.5,0.73411]
[1641477931447,0.00341054,3404.8,3404.5,1.73411]
[1641477931645,0.00284211,3404.7,3404.5,1.73411]
[1641477931847,0.00284211,3404.7,3404.6,13.20348379]
[1641477932145,0.6775225,3404.9,3404.6,15.99938447]
[1641477932348,0.6775225,3404.9,3404.7,1.4681307]
[1641477932547,0.00341054,3404.8,3404.7,1.73407]
[1641477932746,0.6775225,3404.9,3404.8,10.6]
[1641477932945,2.25e-05,3404.9,3404.8,11.024]
[1641477933146,2.25e-05,3404.9,3404.8,13.99162068]
[1641477933346,1.12131885,3405.8,3405.7,1.15765823]
[1641477933549,1.12131885,3405.8,3405.7,6.75435823]
[1641477934045,1.12131885,3405.8,3405.7,2.75435823]
[1641477934246,7.65,3405.8,3405.3,1.0]
[1641477934647,0.00511581,3405.7,3404.9,0.42572631]
[1641477935097,0.00454739,3405.6,3404.9,0.42572631]
[1641477935294,0.00454739,3405.6,3405.4,1.06182068]
[1641477935494,0.00397896,3405.5,3405.4,1.06182068]
[1641477936099,0.00397896,3405.5,3405.4,7.21182068]
[1641477936296,0.00397896,3405.5,3405.4,8.94585068]
[1641477936696,0.00397896,3405.5,3405.4,2.79585068]
[1641477936998,0.00397896,3405.5,3405.4,1.79585068]
[1641477937195,1.31664199,3405.5,3405.4,6.39585068]
[1641477937598,0.00397896,3405.5,3405.4,6.39585068]
[1641477937795,0.00397896,3405.5,3405.4,1.79585068]
[1641477938195,0.81664199,3405.5,3405.4,1.79585068]
[1641477938395,0.81664199,3405.5,3405.4,2.09585068]
[1641477938637,0.81664199,3405.5,3405.4,1.79585068]
[1641477938938,2.91393267,3405.8,3405.4,1.06182068]
[1641477939137,4.78103135,3405.8,3405.4,1.06182068]
[1641477939338,2.21618631,3405.7,3405.4,1.06182068]
[1641477939539,0.73580527,3405.8,3405.4,1.06182068]
[1641477939740,0.0009168,3405.7,3405.0,1.00985288]
[1641477939938,0.73422,3405.4,3404.9,1.30468273]
[1641477940149,0.73422,3405.4,3405.1,0.00227369]
[1641477940743,0.73422,3405.4,3404.7,0.00454739]
[1641477941142,0.73422,3405.4,3404.8,0.73419]
[1641477941542,0.73422,3405.4,3404.9,0.00341054]
[1641477942143,0.73422,3405.4,3404.9,0.73418]
[1641477942590,0.73422,3405.4,3405.0,0.00284212]
[1641477942899,2.15635967,3405.3,3405.0,0.00284212]
[1641477943090,0.73422,3405.4,3405.0,0.00284212]
[1641477943293,0.73422,3405.4,3404.7,0.00454739]
[1641477943691,0.73422,3405.4,3404.8,0.73421]
[1641477943898,0.73422,3405.4,3404.8,2.0694584]
[1641477944092,0.73422,3405.4,3404.9,0.00341054]
[1641477945093,1.12223565,3405.7,3404.9,0.30341054]
[1641477945293,1.12223565,3405.7,3405.3,0.73405]
[1641477945891,0.0009168,3405.7,3405.3,0.73405]
[1641477946151,0.0009168,3405.7,3405.3,1.73405]
[1641477946442,0.0009168,3405.7,3405.3,0.73405]
[1641477946642,0.0009168,3405.7,3405.5,0.73408]
[1641477947143,0.0009168,3405.7,3405.4,0.01140741]
[1641477948548,0.73580527,3405.8,3405.4,0.01140741]
[1641477948748,1.46838,3405.7,3405.4,0.01140741]
[1641477949249,1.64938918,3405.6,3405.4,0.01140741]
[1641477949647,11.4,3405.5,3405.2,7.41e-06]
[1641477949893,12.86871,3405.5,3405.2,7.41e-06]
[1641477950092,12.86871,3405.5,3405.3,0.00113684]
[1641477950295,13.16871,3405.5,3405.3,0.00113684]
[1641477950700,13.90313,3405.5,3404.3,1.4687072]
[1641477950895,13.90313,3405.5,3403.6,4.03721693]
[1641477950896,0.01299172,3405.0,3403.6,4.03721693]
[1641477951095,0.01299172,3405.0,3404.8,0.00284212]
[1641477951297,11.47118739,3404.9,3404.8,0.00284212]
[1641477951697,11.47118739,3404.9,3403.6,2.64831325]
[1641477951698,11.4,3404.9,3403.9,0.00795793]
[1641477952096,11.4,3404.9,3403.8,0.00852636]
[1641477952298,11.4,3404.9,3403.6,0.0096632]
[1641477952497,11.4,3404.9,3404.0,1.17224368]
[1641477952896,2.18534667,3404.8,3404.1,0.00682109]
[1641477953097,2.2999781,3404.8,3404.1,0.00682109]
[1641477953301,2.2999781,3404.8,3404.0,0.00738951]
[1641477953745,2.03594271,3405.1,3404.2,0.73437]
[1641477954146,2.03594271,3405.1,3404.3,0.00568424]
[1641477954348,2.16803325,3405.0,3404.3,0.00568424]
[1641477954949,2.40301046,3405.3,3404.0,0.7344]
[1641477955151,5.0,3404.8,3404.1,0.00682109]
[1641477955548,5.0,3404.8,3404.2,1.36175644]
[1641477956052,5.0,3404.8,3404.3,0.00568424]
[1641477956448,5.0,3404.8,3404.3,1.00568424]
[1641477956852,5.0,3404.8,3404.4,0.00511582]
[1641477957808,5.0,3404.8,3404.3,0.00568424]
[1641477958408,5.0,3404.8,3404.4,0.73433]
[1641477958611,5.0,3404.8,3404.4,1.4686651]
[1641477958808,5.0,3404.8,3404.5,0.00454739]
[1641477960211,7.15963653,3404.8,3404.5,0.00454739]
[1641477960411,7.15963653,3404.8,3404.4,0.00511582]
[1641477960612,5.0,3404.8,3404.1,0.00682109]
[1641477960812,7.18397171,3404.8,3404.1,0.00682109]
[1641477961441,5.0,3404.8,3404.3,1.4688]
[1641477961639,5.0,3404.8,3404.3,0.7344]
[1641477961640,7.15509074,3404.8,3404.3,0.7344]
[1641477961940,5.0,3404.8,3404.4,0.00511582]
[1641477962943,2.2153331,3404.7,3404.4,0.00511582]
[1641477963142,2.2153331,3404.7,3404.5,1.12770749]
[1641477963143,3.40729479,3404.7,3404.5,1.12770749]
[1641477963345,1.24196169,3404.7,3404.5,1.12770749]
[1641477963643,3.40188812,3404.7,3404.6,0.00397897]
[1641477963847,7.20083109,3404.8,3404.6,0.00397897]
[1641477964043,6.30761285,3404.7,3404.6,0.00397897]
[1641477965001,0.73467,3404.4,3403.7,1.34647051]
[1641477965200,0.73467,3404.4,3403.0,1.63846037]
[1641477965201,11.4,3404.2,3403.0,1.63846037]
[1641477965404,3.61431315,3404.1,3403.4,1.55596098]
[1641477965601,10.45,3403.9,3403.0,1.63846037]
[1641477965804,2.66535939,3403.8,3403.0,1.63846037]
[1641477966002,3.40233412,3403.8,3403.0,1.63846037]
[1641477966302,0.00162631,3403.7,3403.0,1.63846037]
[1641477966504,0.00162631,3403.7,3403.2,1.63846037]
[1641477966701,0.00105789,3403.6,3403.2,1.63846037]
[1641477967102,0.00162631,3403.7,3403.2,1.63846037]
[1641477967303,0.00162631,3403.7,3403.2,2.37304527]
[1641477967503,0.00105789,3403.6,3403.4,0.73459]
[1641477967705,0.00105789,3403.6,3402.9,1.46917]
[1641477967904,2.23723264,3403.8,3402.8,1.01238255]
[1641477968203,1.92322963,3403.4,3403.0,0.00235265]
[1641477968646,1.92322963,3403.4,3402.6,0.00462635]
[1641477969046,2.53723264,3403.3,3402.5,0.00519477]
[1641477969241,2.23723264,3403.3,3402.5,0.00519477]
[1641477969641,3.53723264,3403.3,3402.5,0.00519477]
[1641477969842,0.73492,3403.2,3402.5,0.00519477]
[1641477970042,2.47950818,3403.1,3402.5,0.00519477]
[1641477970241,2.77950818,3403.1,3401.9,0.00860531]
[1641477970443,3.77950818,3403.1,3401.9,0.00860531]
[1641477971043,1.64315225,3402.9,3401.9,0.00860531]
[1641477971245,2.31525868,3402.8,3401.9,1.39601748]
[1641477971649,2.31627753,3403.0,3402.0,0.00803689]
[1641477972410,4.26129964,3403.0,3402.0,0.00803689]
[1641477973809,4.26129964,3403.0,3401.9,0.00860531]
[1641477974007,4.56129964,3403.0,3401.8,0.00917374]
[1641477974211,5.26129964,3403.0,3401.8,2.05422792]
[1641477974409,4.99627964,3403.0,3401.8,2.05422792]
[1641477974609,5.26129964,3403.0,3401.9,0.00860531]
[1641477974809,0.924,3403.1,3401.9,0.00860531]
[1641477974810,2.4720356,3403.4,3401.9,0.00860531]
[1641477975016,2.17807845,3403.4,3401.9,0.00860531]
[1641477975413,2.17807845,3403.4,3402.1,1.46952]
[1641477975709,0.424,3403.5,3402.2,0.74172594]
[1641477975910,0.424,3403.5,3402.6,1.01924243]
[1641477976155,2.15879847,3403.4,3402.6,1.01924243]
[1641477976341,2.15879847,3403.4,3402.7,0.00405792]
[1641477976743,0.424,3403.5,3402.7,0.00405792]
[1641477977342,0.424,3403.5,3402.7,1.02330035]
[1641477977541,0.424,3403.5,3402.8,1.27139892]
[1641477977843,0.424,3403.5,3402.9,0.00292108]
[1641477979443,3.82416725,3403.4,3402.9,0.00292108]
[1641477979894,3.82416725,3403.4,3402.8,0.0034895]
[1641477980096,3.82416725,3403.4,3402.9,0.75672134]
[1641477980698,3.90447461,3403.4,3402.9,0.75672134]
[1641477980897,1.66047197,3403.3,3402.9,0.75672134]
[1641477981299,2.17122292,3403.2,3402.9,0.75672134]
[1641477981497,1.66047197,3403.3,3402.9,0.75672134]
[1641477982296,17.36,3403.2,3402.9,0.75672134]
[1641477982899,18.09493,3403.2,3402.9,0.75672134]
[1641477983099,0.424,3403.1,3402.9,0.75672134]
[1641477983300,19.51565936,3403.1,3402.9,0.75672134]
[1641477983499,11.69700895,3403.0,3402.9,0.75672134]
[1641477983746,11.4,3402.8,3402.7,0.00393374]
[1641477983944,11.824,3402.8,3402.7,0.00393374]
[1641477984145,0.73508,3402.6,3402.3,1.01924243]
[1641477984551,20.98118739,3402.5,3402.4,0.0022737]
[1641477984944,20.98118739,3402.5,3401.9,0.00511581]
[1641477985346,0.73514,3402.2,3401.9,0.00511581]
[1641477985546,17.784,3402.1,3401.9,0.00511581]
[1641477985946,13.12497129,3402.0,3401.9,0.00511581]
[1641477986147,13.54897129,3402.0,3401.8,0.00568424]
[1641477986348,13.49897129,3402.0,3401.8,0.00568424]
[1641477986547,30.85897129,3402.0,3401.8,0.00568424]
[1641477986749,13.49897129,3402.0,3401.8,0.00568424]
[1641477986948,4.58522,3401.9,3401.8,0.00568424]
[1641477987152,4.274,3401.9,3401.8,0.00568424]
[1641477987708,0.07118739,3402.2,3401.3,0.00852635]
[1641477987907,0.07118739,3402.2,3401.3,0.74357635]
[1641477988106,0.07118739,3402.2,3401.4,1.01924243]
[1641477988306,0.07118739,3402.2,3401.4,1.02720036]
[1641477988507,0.07118739,3402.2,3401.5,0.00738951]
[1641477989306,0.07118739,3402.2,3401.5,0.01132466]
[1641477989712,0.07118739,3402.2,3401.7,1.38833087]
[1641477989908,0.424,3402.4,3401.7,1.38833087]
[1641477990110,3.35441508,3402.6,3401.8,0.00568424]
[1641477990509,1.94580211,3402.7,3401.8,0.00568424]
[1641477990911,0.424,3402.8,3401.8,0.00568424]
[1641477991352,0.424,3402.8,3401.8,0.74063424]
[1641477991552,0.424,3402.8,3401.8,1.47557924]
[1641477991750,2.3931638,3403.0,3401.9,0.00511581]
[1641477991951,2.3931638,3403.0,3401.9,0.30511581]
[1641477992149,2.3931638,3403.0,3401.8,0.00568424]
[1641477992352,2.3931638,3403.0,3401.7,2.75994992]
[1641477992353,2.32197641,3403.0,3402.0,0.00454739]
[1641477992550,2.32197641,3403.0,3401.8,0.00568424]
[1641477992750,5.0,3401.9,3401.8,0.00568424]
[1641477992952,5.0,3401.9,3401.8,1.47552424]
[1641477993151,5.0,3401.9,3401.8,2.83451415]
[1641477993353,4.84661519,3401.9,3401.8,13.08451415]
[1641477993552,4.79661519,3401.9,3401.8,6.38451415]
[1641477994153,4.79661519,3401.9,3401.8,5.02552424]
[1641477994552,0.07417398,3403.0,3401.9,11.4]
[1641477994753,0.07417398,3403.0,3402.4,0.73477]
[1641477995194,0.00113685,3403.0,3402.5,0.30170527]
[1641477995594,0.00113685,3403.0,3402.6,0.73589635]
[1641477995995,0.00113685,3403.0,3402.6,1.47065635]
[1641477998000,0.00113685,3403.0,3402.8,0.73476]
[1641477999846,0.00113685,3403.0,3402.8,0.00393389]
[1641478004298,0.00113685,3403.0,3402.8,1.39919426]
[1641478004502,0.00113685,3403.0,3402.9,5.75596342]
[1641478004699,0.00113685,3403.0,3402.9,6.39366342]
[1641478005100,1.8263825,3403.1,3403.0,11.4]
[1641478005101,0.01831935,3403.1,3403.0,11.4]
[1641478005603,2.32083956,3403.6,3403.0,11.7]
[1641478005800,1.12151617,3403.9,3403.1,2.41143407]
[1641478006001,1.12151617,3403.9,3403.4,0.3]
[1641478006446,1.12151617,3403.9,3403.6,0.73447]
[1641478006746,2.2428588,3404.4,3403.6,1.03447]
[1641478006946,2.32083956,3404.6,3403.9,0.73454]
[1641478007148,0.00625265,3404.1,3403.5,2.49123035]
[1641478007345,0.00625265,3404.1,3403.5,1.02233035]
[1641478007546,18.15219634,3404.5,3404.0,0.06913063]
[1641478007947,0.07914531,3404.4,3404.0,0.06913063]
[1641478008151,1.12151617,3404.2,3404.0,0.06913063]
[1641478008547,6.65625265,3404.1,3404.0,0.06913063]
[1641478009348,0.00625265,3404.1,3404.0,0.06913063]
[1641478010295,3.30625265,3404.1,3404.0,0.06913063]
[1641478010496,3.30625265,3404.1,3403.9,0.3]
[1641478010896,0.00568423,3404.0,3403.9,0.3]
[1641478011497,0.00568423,3404.0,3403.8,0.73457]
[1641478011896,0.00511581,3403.9,3403.7,1.53816063]
[1641478012297,0.00454738,3403.8,3403.7,1.53816063]
[1641478013401,0.00454738,3403.8,3403.7,0.06913063]
[1641478013402,5.75454738,3403.8,3403.7,0.06913063]
[1641478014149,5.75454738,3403.8,3403.2,1.02233035]
[1641478014350,5.75454738,3403.8,3403.5,0.06913063]
[1641478014553,0.00397896,3403.7,3403.5,0.06913063]
[1641478014954,3.40341054,3403.6,3403.5,0.06913063]
[1641478015352,0.00341054,3403.6,3403.5,0.06913063]
[1641478024159,7.15341054,3403.6,3403.5,0.06913063]
[1641478025196,9.35338267,3403.6,3403.2,0.06913063]
[1641478025397,7.15341054,3403.6,3403.5,0.00575331]
[1641478025601,8.82596294,3403.6,3403.5,0.74615878]
[1641478027102,8.82596294,3403.6,3403.5,0.00575331]
[1641478027501,1.67596294,3403.6,3403.5,0.00575331]
[1641478028100,1.67596294,3403.6,3403.5,0.74679859]
[1641478028301,1.67596294,3403.6,3403.5,0.81592922]
[1641478029049,1.67596294,3403.7,3403.6,1.29247324]
[1641478029847,0.00454738,3403.8,3403.6,2.03351852]
[1641478031050,0.00454738,3403.8,3403.7,4.29104528]
[1641478031654,0.00454738,3403.8,3403.7,5.02554528]
[1641478032051,0.00454738,3403.8,3403.7,5.09467591]
[1641478032250,0.00454738,3403.8,3403.7,1.54467591]
[1641478032499,0.00454738,3403.8,3403.7,0.81017591]
[1641478033496,0.00454738,3403.8,3403.7,0.06913063]
[1641478036149,3.00454738,3403.8,3403.7,0.06913063]
[1641478036350,0.00454738,3403.8,3403.7,0.06913063]
[1641478038556,0.00454738,3403.8,3403.7,2.32216031]
[1641478038757,0.07303195,3404.9,3404.7,1.03964631]
[1641478038958,0.07303195,3404.9,3404.7,0.6712]
[1641478039158,0.00568424,3404.8,3404.7,0.9712]
[1641478039358,0.00568424,3404.8,3404.7,0.6712]
[1641478039758,0.00568424,3404.8,3404.7,0.74033063]
[1641478039999,0.00568424,3404.8,3404.7,0.06913063]
[1641478040199,0.00568424,3404.8,3404.7,1.06913063]
[1641478040800,0.00568424,3404.8,3404.7,2.758932]
[1641478041002,0.00568424,3404.8,3404.7,8.708932]
[1641478041407,0.00568424,3404.8,3404.7,2.758932]
[1641478043200,1.1197258,3405.9,3404.7,2.758932]
[1641478043500,0.00568423,3405.8,3404.7,4.227522]
[1641478043753,2.11104768,3405.4,3404.7,4.227522]
[1641478044152,0.00284212,3405.3,3405.0,0.7342931]
[1641478044653,0.00227369,3405.2,3405.0,0.7342931]
[1641478045055,0.00170527,3405.1,3405.0,0.7342931]
[1641478045853,0.00170527,3405.1,3405.0,0.80342373]
[1641478048800,0.00170527,3405.1,3405.0,0.06913063]
[1641478049001,4.10170527,3405.1,3405.0,0.82356286]
[1641478049199,4.10170527,3405.1,3405.0,0.75443223]
[1641478049700,4.10170527,3405.1,3404.9,0.06913063]
[1641478049899,5.73842969,3405.1,3404.9,0.06913063]
[1641478050104,4.45113684,3405.0,3404.9,0.06913063]
[1641478050600,6.9363722,3405.0,3404.9,0.06913063]
[1641478050800,11.4,3404.9,3404.1,1.02233035]
[1641478051154,28.76,3404.9,3404.8,0.00579859]
[1641478051351,28.76,3404.9,3404.0,1.40411456]
[1641478051352,11.4,3404.8,3404.0,0.00925404]
[1641478051555,0.73471,3404.4,3404.0,0.00925404]
[1641478051753,18.08100895,3404.7,3404.0,0.00925404]
[1641478051754,17.36,3404.2,3404.0,0.00925404]
[1641478051952,11.77755473,3403.6,3403.5,1.0088672]
[1641478052351,11.77755473,3403.6,3403.5,1.01284617]
[1641478052758,12.51237473,3403.6,3403.5,1.01284617]
[1641478052952,11.4,3403.5,3403.3,1.35898991]
[1641478053154,11.4,3403.5,3402.5,1.35898991]
[1641478053155,1.98503602,3402.7,3402.5,1.35898991]
[1641478053555,1.98503602,3402.7,3402.6,0.00511581]
[1641478053754,12.08503602,3402.7,3402.6,0.00511581]
[1641478054159,12.08503602,3402.7,3402.6,1.581e-05]
[1641478054160,13.10604497,3402.7,3402.6,1.581e-05]
[1641478054355,13.10604497,3402.7,3401.8,2.04505418]
[1641478054356,0.3,3402.4,3401.8,2.04505418]
[1641478054559,17.784,3402.3,3402.1,0.00284212]
[1641478055007,17.85518739,3402.3,3402.1,0.00284212]
[1641478055599,11.5852,3402.2,3402.1,0.00284212]
[1641478055800,0.424,3402.2,3401.8,1.27095637]
[1641478055999,1.87081457,3402.7,3401.8,1.27095637]
[1641478056199,1.87081457,3402.7,3401.9,0.00397896]
[1641478056399,1.87081457,3402.7,3401.9,0.00791386]
[1641478056700,1.87081457,3402.2,3402.0,0.00341054]
[1641478057099,1.87081457,3402.2,3402.0,0.73831754]
[1641478057500,1.87081457,3402.7,3402.0,0.00341054]
[1641478058857,2.0448359,3402.6,3402.0,0.00341054]
[1641478059558,0.3,3402.7,3402.0,0.00341054]
[1641478059762,19.23081457,3402.9,3402.0,0.00341054]
[1641478059958,19.53081457,3402.9,3402.0,0.00341054]
[1641478060159,0.00113685,3402.8,3402.0,0.00341054]
[1641478060364,1.87081457,3402.6,3402.0,0.00341054]
[1641478060664,1.62503666,3402.5,3402.0,0.00341054]
[1641478061060,17.36,3402.6,3402.0,0.00341054]
[1641478061861,1.87081457,3402.4,3402.0,0.00341054]
[1641478062509,1.87081457,3402.5,3402.0,0.00341054]
[1641478065007,1.87081457,3402.5,3402.1,0.3]
[1641478065208,1.87081457,3402.5,3402.0,0.00341054]
[1641478065409,19.95296037,3402.8,3402.2,0.00227369]